[Event "Titled Tuesday Blitz July 18 Early 2023"]
[White "Devaev, Alexander"]
[Black "Golubev, Mikhail"]
[WhiteFideId "4169395"]
[BlackFideId "14100983"]
[WhiteElo "2445"]
[BlackElo "2597"]
[Result "1-0"]
[Round "9"]
[TimeControl "180+2"]
[Date "2023.07.18"]
[WhiteClock "0:00:15"]
[BlackClock "0:00:00"]
[Board "84"]

1. d4 {[%clk 0:02:52]}  Nf6 {[%clk 0:02:59]} 2. c4 {[%clk 0:02:52]}  g6 {[%clk 0:02:59]} 3. Nc3 {[%clk 0:02:52]}  Bg7 {[%clk 0:03:00]} 4. e4 {[%clk 0:02:53]}  d6 {[%clk 0:03:00]} 5. Nf3 {[%clk 0:02:54]}  O-O {[%clk 0:03:00]} 6. h3 {[%clk 0:02:54]}  e5 {[%clk 0:02:58]} 7. d5 {[%clk 0:02:55]}  Nh5 {[%clk 0:02:57]} 8. Nh2 {[%clk 0:02:53]}  a5 {[%clk 0:02:42]} 9. g3 {[%clk 0:02:53]}  Na6 {[%clk 0:02:42]} 10. Be2 {[%clk 0:02:53]}  Nf6 {[%clk 0:02:42]} 11. Ng4 {[%clk 0:02:54]}  h5 {[%clk 0:02:29]} 12. Nxf6+ {[%clk 0:02:39]}  Qxf6 {[%clk 0:02:29]} 13. Be3 {[%clk 0:02:35]}  Qe7 {[%clk 0:02:17]} 14. g4 {[%clk 0:02:34]}  h4 {[%clk 0:02:07]} 15. Qd2 {[%clk 0:02:33]}  Nc5 {[%clk 0:01:55]} 16. Rg1 {[%clk 0:02:29]}  Bd7 {[%clk 0:01:52]} 17. O-O-O {[%clk 0:02:22]}  a4 {[%clk 0:01:46]} 18. Kb1 {[%clk 0:02:22]}  Kh7 {[%clk 0:01:36]} 19. Bg5 {[%clk 0:02:21]}  Bf6 {[%clk 0:01:35]} 20. Bh6 {[%clk 0:02:21]}  Rg8 {[%clk 0:01:27]} 21. Be3 {[%clk 0:02:03]}  b6 {[%clk 0:01:23]} 22. g5 {[%clk 0:02:00]}  Bg7 {[%clk 0:01:23]} 23. Bg4 {[%clk 0:02:01]}  Be8 {[%clk 0:01:19]} 24. f3 {[%clk 0:01:59]}  Rh8 {[%clk 0:01:19]} 25. Qf2 {[%clk 0:01:43]}  Kg8 {[%clk 0:01:19]} 26. Qd2 {[%clk 0:01:44]}  Rh7 {[%clk 0:01:18]} 27. Rdf1 {[%clk 0:01:37]}  Rb8 {[%clk 0:01:14]} 28. Qe2 {[%clk 0:01:34]}  Kh8 {[%clk 0:00:52]} 29. Rc1 {[%clk 0:01:33]}  Kg8 {[%clk 0:00:51]} 30. Kc2 {[%clk 0:01:34]}  Kh8 {[%clk 0:00:45]} 31. Kd2 {[%clk 0:01:33]}  f6 {[%clk 0:00:43]} 32. gxf6 {[%clk 0:01:31]}  Bxf6 {[%clk 0:00:43]} 33. Rg2 {[%clk 0:01:24]}  Bg5 {[%clk 0:00:41]} 34. Rcg1 {[%clk 0:01:23]}  Bf7 {[%clk 0:00:36]} 35. Kc2 {[%clk 0:01:18]}  Bf4 {[%clk 0:00:30]} 36. Be6 {[%clk 0:01:00]}  Bxe3 {[%clk 0:00:20]} 37. Qxe3 {[%clk 0:00:56]}  Bxe6 {[%clk 0:00:18]} 38. dxe6 {[%clk 0:00:56]}  Qxe6 {[%clk 0:00:16]} 39. Rxg6 {[%clk 0:00:49]}  Qxc4 {[%clk 0:00:16]} 40. Qg5 {[%clk 0:00:50]}  a3 {[%clk 0:00:00]} 41. Rh6 {[%clk 0:00:15]} 1-0


[Site "https://www.chess.com"]

[Event "Titled Tuesday Blitz July 18 Early 2023"]
[White "JonSnowNW1"]
[Black "Shukhman, Anna"]
[BlackFideId "54180058"]
[WhiteElo "2448"]
[BlackElo "2588"]
[Result "0-1"]
[Round "9"]
[TimeControl "180+2"]
[Date "2023.07.18"]
[WhiteClock "0:00:00"]
[BlackClock "0:00:02"]
[Board "85"]

1. c4 {[%clk 0:03:00]}  Nf6 {[%clk 0:03:00]} 2. Nc3 {[%clk 0:02:57]}  e5 {[%clk 0:03:00]} 3. g3 {[%clk 0:02:53]}  d5 {[%clk 0:02:58]} 4. cxd5 {[%clk 0:02:53]}  Nxd5 {[%clk 0:02:59]} 5. Bg2 {[%clk 0:02:52]}  Be6 {[%clk 0:02:58]} 6. Nf3 {[%clk 0:02:52]}  Nc6 {[%clk 0:02:57]} 7. O-O {[%clk 0:02:52]}  Be7 {[%clk 0:02:56]} 8. d4 {[%clk 0:02:52]}  exd4 {[%clk 0:02:53]} 9. Nxd4 {[%clk 0:02:53]}  Nxc3 {[%clk 0:02:51]} 10. bxc3 {[%clk 0:02:51]}  Bd5 {[%clk 0:02:47]} 11. e4 {[%clk 0:02:14]}  Bc4 {[%clk 0:02:46]} 12. Re1 {[%clk 0:02:13]}  O-O {[%clk 0:02:45]} 13. Be3 {[%clk 0:02:09]}  Bf6 {[%clk 0:02:44]} 14. Qa4 {[%clk 0:02:08]}  Nxd4 {[%clk 0:02:40]} 15. cxd4 {[%clk 0:02:09]}  b5 {[%clk 0:02:38]} 16. Qd1 {[%clk 0:02:08]}  Rc8 {[%clk 0:02:21]} 17. e5 {[%clk 0:02:01]}  Be7 {[%clk 0:02:15]} 18. d5 {[%clk 0:01:49]}  Re8 {[%clk 0:02:13]} 19. Qd2 {[%clk 0:01:31]}  a5 {[%clk 0:02:03]} 20. a3 {[%clk 0:01:29]}  Qd7 {[%clk 0:01:51]} 21. Qxa5 {[%clk 0:01:01]}  Bxd5 {[%clk 0:01:47]} 22. Rad1 {[%clk 0:01:00]}  c6 {[%clk 0:01:47]} 23. Qc3 {[%clk 0:00:54]}  Qe6 {[%clk 0:01:37]} 24. Bc5 {[%clk 0:00:53]}  Rcd8 {[%clk 0:01:18]} 25. Bf1 {[%clk 0:00:45]}  Qf5 {[%clk 0:01:10]} 26. Bxe7 {[%clk 0:00:31]}  Rxe7 {[%clk 0:01:08]} 27. Bd3 {[%clk 0:00:28]}  Qe6 {[%clk 0:00:32]} 28. Be4 {[%clk 0:00:24]}  Red7 {[%clk 0:00:32]} 29. Rc1 {[%clk 0:00:19]}  h5 {[%clk 0:00:30]} 30. Bxd5 {[%clk 0:00:18]}  Rxd5 {[%clk 0:00:26]} 31. Qxc6 {[%clk 0:00:17]}  Rxe5 {[%clk 0:00:17]} 32. Qxe6 {[%clk 0:00:15]}  Rxe6 {[%clk 0:00:18]} 33. Rxe6 {[%clk 0:00:15]}  fxe6 {[%clk 0:00:18]} 34. Rc6 {[%clk 0:00:08]}  Kf7 {[%clk 0:00:17]} 35. Rb6 {[%clk 0:00:08]}  Rd5 {[%clk 0:00:17]} 36. Kg2 {[%clk 0:00:08]}  g5 {[%clk 0:00:17]} 37. Kf3 {[%clk 0:00:07]}  Kf6 {[%clk 0:00:15]} 38. Ke4 {[%clk 0:00:07]}  Rc5 {[%clk 0:00:15]} 39. f4 {[%clk 0:00:06]}  gxf4 {[%clk 0:00:15]} 40. gxf4 {[%clk 0:00:07]}  h4 {[%clk 0:00:14]} 41. Rb8 {[%clk 0:00:07]}  Rc4+ {[%clk 0:00:13]} 42. Kf3 {[%clk 0:00:07]}  Rc3+ {[%clk 0:00:14]} 43. Kg4 {[%clk 0:00:07]}  Rxa3 {[%clk 0:00:12]} 44. Rxb5 {[%clk 0:00:07]}  h3 {[%clk 0:00:12]} 45. Rh5 {[%clk 0:00:07]}  Ra2 {[%clk 0:00:12]} 46. Rxh3 {[%clk 0:00:08]}  Rg2+ {[%clk 0:00:12]} 47. Rg3 {[%clk 0:00:08]}  Rxh2 {[%clk 0:00:12]} 48. Kf3 {[%clk 0:00:08]}  Ra2 {[%clk 0:00:12]} 49. Kg4 {[%clk 0:00:08]}  Ra4 {[%clk 0:00:11]} 50. Rh3 {[%clk 0:00:08]}  e5 {[%clk 0:00:11]} 51. Rf3 {[%clk 0:00:04]}  e4 {[%clk 0:00:11]} 52. Rb3 {[%clk 0:00:04]}  Ke6 {[%clk 0:00:11]} 53. Rb6+ {[%clk 0:00:04]}  Kd5 {[%clk 0:00:11]} 54. f5 {[%clk 0:00:04]}  Ra1 {[%clk 0:00:08]} 55. f6 {[%clk 0:00:04]}  Rf1 {[%clk 0:00:08]} 56. Kg5 {[%clk 0:00:02]}  e3 {[%clk 0:00:08]} 57. Kg6 {[%clk 0:00:02]}  e2 {[%clk 0:00:07]} 58. Rb5+ {[%clk 0:00:02]}  Kd4 {[%clk 0:00:05]} 59. Rb4+ {[%clk 0:00:02]}  Ke5 {[%clk 0:00:04]} 60. Rb8 {[%clk 0:00:00]}  e1=Q {[%clk 0:00:02]} 0-1


[Site "https://www.chess.com"]

[Event "Titled Tuesday Blitz July 18 Early 2023"]
[White "Vlassov, Nikolai"]
[Black "Ai, Evan"]
[WhiteFideId "4103360"]
[BlackFideId "2094770"]
[WhiteElo "2575"]
[BlackElo "2444"]
[Result "1-0"]
[Round "9"]
[TimeControl "180+2"]
[Date "2023.07.18"]
[WhiteClock "0:00:07"]
[BlackClock "0:00:01"]
[Board "86"]

1. e4 {[%clk 0:03:00]}  e5 {[%clk 0:02:59]} 2. Bc4 {[%clk 0:02:59]}  Nf6 {[%clk 0:02:59]} 3. d3 {[%clk 0:02:59]}  Bc5 {[%clk 0:02:58]} 4. Nf3 {[%clk 0:02:59]}  d6 {[%clk 0:02:58]} 5. Bg5 {[%clk 0:02:54]}  h6 {[%clk 0:02:58]} 6. Bh4 {[%clk 0:02:52]}  g5 {[%clk 0:02:56]} 7. Bg3 {[%clk 0:02:52]}  c6 {[%clk 0:02:55]} 8. Bb3 {[%clk 0:02:47]}  a5 {[%clk 0:02:54]} 9. a4 {[%clk 0:02:45]}  Qe7 {[%clk 0:02:53]} 10. Nc3 {[%clk 0:02:40]}  Bg4 {[%clk 0:02:51]} 11. h3 {[%clk 0:02:27]}  Bh5 {[%clk 0:02:49]} 12. h4 {[%clk 0:02:27]}  g4 {[%clk 0:02:37]} 13. Nd2 {[%clk 0:02:26]}  Nbd7 {[%clk 0:02:32]} 14. Nf1 {[%clk 0:02:17]}  Bd4 {[%clk 0:02:26]} 15. Ne3 {[%clk 0:02:16]}  Bxe3 {[%clk 0:02:17]} 16. fxe3 {[%clk 0:02:17]}  Nc5 {[%clk 0:02:17]} 17. Ba2 {[%clk 0:02:11]}  Bg6 {[%clk 0:02:13]} 18. h5 {[%clk 0:02:06]}  Nxh5 {[%clk 0:02:12]} 19. Bh4 {[%clk 0:02:06]}  Qd7 {[%clk 0:02:08]} 20. Qe2 {[%clk 0:01:54]}  f6 {[%clk 0:01:52]} 21. O-O-O {[%clk 0:01:52]}  O-O-O {[%clk 0:01:35]} 22. d4 {[%clk 0:01:52]}  Nxe4 {[%clk 0:01:31]} 23. Nxe4 {[%clk 0:01:51]}  Bxe4 {[%clk 0:01:31]} 24. dxe5 {[%clk 0:01:51]}  fxe5 {[%clk 0:01:32]} 25. Bxd8 {[%clk 0:01:47]}  Ng3 {[%clk 0:01:32]} 26. Qc4 {[%clk 0:01:21]}  Nxh1 {[%clk 0:01:29]} 27. Bh4 {[%clk 0:00:56]}  d5 {[%clk 0:01:19]} 28. Qc3 {[%clk 0:00:50]}  Qc7 {[%clk 0:01:05]} 29. Rxh1 {[%clk 0:00:48]}  Kb8 {[%clk 0:01:04]} 30. Bf6 {[%clk 0:00:44]}  Re8 {[%clk 0:01:04]} 31. Rxh6 {[%clk 0:00:44]}  Bxg2 {[%clk 0:01:03]} 32. Rh5 {[%clk 0:00:42]}  d4 {[%clk 0:00:54]} 33. Qc5 {[%clk 0:00:37]}  b6 {[%clk 0:00:51]} 34. Rxe5 {[%clk 0:00:26]}  Rxe5 {[%clk 0:00:37]} 35. Qxe5 {[%clk 0:00:24]}  dxe3 {[%clk 0:00:35]} 36. Qxe3 {[%clk 0:00:20]}  Kb7 {[%clk 0:00:33]} 37. Qe7 {[%clk 0:00:19]}  Bf3 {[%clk 0:00:26]} 38. Be6 {[%clk 0:00:17]}  Qxe7 {[%clk 0:00:24]} 39. Bxe7 {[%clk 0:00:17]}  g3 {[%clk 0:00:25]} 40. Bh4 {[%clk 0:00:16]}  g2 {[%clk 0:00:24]} 41. Bf2 {[%clk 0:00:17]}  b5 {[%clk 0:00:22]} 42. axb5 {[%clk 0:00:16]}  cxb5 {[%clk 0:00:23]} 43. Kd2 {[%clk 0:00:17]}  b4 {[%clk 0:00:20]} 44. Ke3 {[%clk 0:00:17]}  Bd1 {[%clk 0:00:19]} 45. Bf5 {[%clk 0:00:16]}  a4 {[%clk 0:00:19]} 46. c4 {[%clk 0:00:15]}  bxc3 {[%clk 0:00:16]} 47. bxc3 {[%clk 0:00:15]}  a3 {[%clk 0:00:17]} 48. Be6 {[%clk 0:00:12]}  Kc6 {[%clk 0:00:11]} 49. Ba2 {[%clk 0:00:12]}  Kb5 {[%clk 0:00:11]} 50. Bg1 {[%clk 0:00:10]}  Ka4 {[%clk 0:00:12]} 51. Kf2 {[%clk 0:00:10]}  Bb3 {[%clk 0:00:12]} 52. Bb1 {[%clk 0:00:08]}  Bd5 {[%clk 0:00:12]} 53. c4 {[%clk 0:00:06]}  Bxc4 {[%clk 0:00:12]} 54. Kxg2 {[%clk 0:00:06]}  Kb3 {[%clk 0:00:12]} 55. Bd4 {[%clk 0:00:06]}  Bd5+ {[%clk 0:00:09]} 56. Kf2 {[%clk 0:00:06]}  Kc4 {[%clk 0:00:10]} 57. Ke3 {[%clk 0:00:05]}  Kb3 {[%clk 0:00:10]} 58. Kd2 {[%clk 0:00:05]}  a2 {[%clk 0:00:06]} 59. Bd3 {[%clk 0:00:05]}  Ka4 {[%clk 0:00:07]} 60. Bb2 {[%clk 0:00:05]}  Kb4 {[%clk 0:00:07]} 61. Bc2 {[%clk 0:00:05]}  Kc5 {[%clk 0:00:07]} 62. Kc3 {[%clk 0:00:05]}  Kd6 {[%clk 0:00:07]} 63. Ba1 {[%clk 0:00:05]}  Be6 {[%clk 0:00:07]} 64. Kd4 {[%clk 0:00:05]}  Bd5 {[%clk 0:00:07]} 65. Kc3 {[%clk 0:00:06]}  Kc6 {[%clk 0:00:07]} 66. Kb4 {[%clk 0:00:06]}  Kd6 {[%clk 0:00:08]} 67. Ba4 {[%clk 0:00:06]}  Ke6 {[%clk 0:00:08]} 68. Kc5 {[%clk 0:00:06]}  Be4 {[%clk 0:00:03]} 69. Bb3+ {[%clk 0:00:06]}  Kf5 {[%clk 0:00:03]} 70. Bxa2 {[%clk 0:00:07]}  Kf4 {[%clk 0:00:04]} 71. Kd4 {[%clk 0:00:07]}  Kf3 {[%clk 0:00:05]} 72. Bc3 {[%clk 0:00:08]}  Bb7 {[%clk 0:00:05]} 73. Bc4 {[%clk 0:00:08]}  Be4 {[%clk 0:00:06]} 74. Bb5 {[%clk 0:00:08]}  Bb7 {[%clk 0:00:06]} 75. Bd3 {[%clk 0:00:08]}  Kf4 {[%clk 0:00:06]} 76. Bd2+ {[%clk 0:00:08]}  Kf3 {[%clk 0:00:06]} 77. Ke5 {[%clk 0:00:09]}  Bc6 {[%clk 0:00:06]} 78. Bg5 {[%clk 0:00:09]}  Bb7 {[%clk 0:00:06]} 79. Bf5 {[%clk 0:00:09]}  Ke2 {[%clk 0:00:06]} 80. Kd4 {[%clk 0:00:09]}  Kf3 {[%clk 0:00:07]} 81. Bh6 {[%clk 0:00:09]}  Bc6 {[%clk 0:00:06]} 82. Be6 {[%clk 0:00:09]}  Be4 {[%clk 0:00:06]} 83. Bd7 {[%clk 0:00:09]}  Bb7 {[%clk 0:00:06]} 84. Be6 {[%clk 0:00:09]}  Be4 {[%clk 0:00:06]} 85. Bf7 {[%clk 0:00:10]}  Bf5 {[%clk 0:00:06]} 86. Bh5+ {[%clk 0:00:10]}  Kg3 {[%clk 0:00:06]} 87. Ke5 {[%clk 0:00:09]}  Kh4 {[%clk 0:00:06]} 88. Bf7 {[%clk 0:00:09]}  Bg4 {[%clk 0:00:06]} 89. Kf4 {[%clk 0:00:10]}  Kh3 {[%clk 0:00:06]} 90. Bg5 {[%clk 0:00:10]}  Bd7 {[%clk 0:00:06]} 91. Bd5 {[%clk 0:00:10]}  Bg4 {[%clk 0:00:06]} 92. Be4 {[%clk 0:00:10]}  Bd7 {[%clk 0:00:06]} 93. Kf3 {[%clk 0:00:10]}  Bg4+ {[%clk 0:00:05]} 94. Kf2 {[%clk 0:00:10]}  Bd7 {[%clk 0:00:06]} 95. Bf3 {[%clk 0:00:10]}  Be6 {[%clk 0:00:03]} 96. Bf6 {[%clk 0:00:10]}  Bd7 {[%clk 0:00:03]} 97. Ke3 {[%clk 0:00:10]}  Kg3 {[%clk 0:00:03]} 98. Be5+ {[%clk 0:00:10]}  Kh4 {[%clk 0:00:04]} 99. Kf4 {[%clk 0:00:11]}  Kh3 {[%clk 0:00:04]} 100. Bd4 {[%clk 0:00:10]}  Bc8 {[%clk 0:00:04]} 101. Bf2 {[%clk 0:00:10]}  Bd7 {[%clk 0:00:03]} 102. Bd5 {[%clk 0:00:10]}  Bc8 {[%clk 0:00:03]} 103. Bc6 {[%clk 0:00:10]}  Be6 {[%clk 0:00:03]} 104. Bg3 {[%clk 0:00:11]}  Bg4 {[%clk 0:00:03]} 105. Bb5 {[%clk 0:00:11]}  Bf3 {[%clk 0:00:01]} 106. Bd3 {[%clk 0:00:08]}  Bg2 {[%clk 0:00:01]} 107. Bf5# {[%clk 0:00:07]} 1-0


[Site "https://www.chess.com"]

[Event "Titled Tuesday Blitz July 18 Early 2023"]
[White "Vivas Zamora, Fabian Ernesto"]
[Black "Ezat, Mohamed"]
[WhiteFideId "3902480"]
[BlackFideId "10600906"]
[WhiteElo "2429"]
[BlackElo "2548"]
[Result "1-0"]
[Round "9"]
[TimeControl "180+2"]
[Date "2023.07.18"]
[WhiteClock "0:00:17"]
[BlackClock "0:00:06"]
[Board "88"]

1. e4 {[%clk 0:03:00]}  e5 {[%clk 0:02:53]} 2. Nf3 {[%clk 0:02:59]}  Nc6 {[%clk 0:02:52]} 3. Bc4 {[%clk 0:02:59]}  Nf6 {[%clk 0:02:51]} 4. d3 {[%clk 0:02:58]}  Bc5 {[%clk 0:02:49]} 5. O-O {[%clk 0:02:57]}  O-O {[%clk 0:02:49]} 6. c3 {[%clk 0:02:57]}  d6 {[%clk 0:02:49]} 7. a4 {[%clk 0:02:52]}  a6 {[%clk 0:02:40]} 8. h3 {[%clk 0:02:51]}  Ne7 {[%clk 0:02:39]} 9. Re1 {[%clk 0:02:35]}  Ng6 {[%clk 0:02:36]} 10. d4 {[%clk 0:02:33]}  Ba7 {[%clk 0:02:35]} 11. Nbd2 {[%clk 0:02:23]}  exd4 {[%clk 0:02:26]} 12. cxd4 {[%clk 0:02:19]}  d5 {[%clk 0:02:26]} 13. exd5 {[%clk 0:02:13]}  Nxd5 {[%clk 0:02:26]} 14. Ne4 {[%clk 0:02:07]}  h6 {[%clk 0:02:21]} 15. Nc5 {[%clk 0:01:38]}  c6 {[%clk 0:02:14]} 16. Ne5 {[%clk 0:01:32]}  Ngf4 {[%clk 0:01:40]} 17. Bxf4 {[%clk 0:00:44]}  Nxf4 {[%clk 0:01:38]} 18. Nxf7 {[%clk 0:00:40]}  Rxf7 {[%clk 0:01:31]} 19. Bxf7+ {[%clk 0:00:41]}  Kxf7 {[%clk 0:01:31]} 20. Qf3 {[%clk 0:00:38]}  Qf6 {[%clk 0:01:29]} 21. Ne4 {[%clk 0:00:37]}  Qh4 {[%clk 0:01:07]} 22. g3 {[%clk 0:00:36]}  Qxh3 {[%clk 0:01:00]} 23. Qxf4+ {[%clk 0:00:35]}  Kg8 {[%clk 0:01:00]} 24. Nf6+ {[%clk 0:00:22]}  gxf6 {[%clk 0:00:57]} 25. Re8+ {[%clk 0:00:22]}  Kg7 {[%clk 0:00:52]} 26. Rae1 {[%clk 0:00:17]}  Be6 {[%clk 0:00:16]} 27. R8xe6 {[%clk 0:00:16]}  Rf8 {[%clk 0:00:13]} 28. Re7+ {[%clk 0:00:16]}  Kh8 {[%clk 0:00:13]} 29. Rxb7 {[%clk 0:00:15]}  Bxd4 {[%clk 0:00:04]} 30. Qxd4 {[%clk 0:00:15]}  Qf5 {[%clk 0:00:03]} 31. Qf4 {[%clk 0:00:15]}  Qxf4 {[%clk 0:00:03]} 32. gxf4 {[%clk 0:00:16]}  Rg8+ {[%clk 0:00:04]} 33. Kf1 {[%clk 0:00:16]}  Rd8 {[%clk 0:00:05]} 34. Ree7 {[%clk 0:00:16]}  Rd4 {[%clk 0:00:05]} 35. Rh7+ {[%clk 0:00:16]}  Kg8 {[%clk 0:00:04]} 36. Rbg7+ {[%clk 0:00:17]}  Kf8 {[%clk 0:00:04]} 37. Ra7 {[%clk 0:00:17]}  Kg8 {[%clk 0:00:05]} 38. Rxh6 {[%clk 0:00:16]}  Kf8 {[%clk 0:00:05]} 39. Rxf6+ {[%clk 0:00:16]}  Ke8 {[%clk 0:00:06]} 40. Rxc6 {[%clk 0:00:17]}  Kd8 {[%clk 0:00:07]} 41. Rh6 {[%clk 0:00:16]}  Rxf4 {[%clk 0:00:08]} 42. Rh8+ {[%clk 0:00:16]}  Rf8 {[%clk 0:00:06]} 43. Rxf8# {[%clk 0:00:17]} 1-0


[Site "https://www.chess.com"]

[Event "Titled Tuesday Blitz July 18 Early 2023"]
[White "Philippe, Guillaume"]
[Black "ArturoCaceres"]
[WhiteFideId "36048763"]
[WhiteElo "2518"]
[BlackElo "2407"]
[Result "1-0"]
[Round "9"]
[TimeControl "180+2"]
[Date "2023.07.18"]
[WhiteClock "0:00:33"]
[BlackClock "0:00:04"]
[Board "94"]

1. e4 {[%clk 0:02:54]}  a6 {[%clk 0:02:55]} 2. d4 {[%clk 0:02:50]}  b5 {[%clk 0:02:55]} 3. Bd3 {[%clk 0:02:48]}  Bb7 {[%clk 0:02:55]} 4. Qe2 {[%clk 0:02:48]}  e6 {[%clk 0:02:56]} 5. c3 {[%clk 0:02:48]}  Ne7 {[%clk 0:02:55]} 6. Nf3 {[%clk 0:02:48]}  d5 {[%clk 0:02:54]} 7. e5 {[%clk 0:02:48]}  Nd7 {[%clk 0:02:55]} 8. O-O {[%clk 0:02:48]}  c5 {[%clk 0:02:55]} 9. Bf4 {[%clk 0:02:48]}  c4 {[%clk 0:02:55]} 10. Bc2 {[%clk 0:02:48]}  a5 {[%clk 0:02:55]} 11. Nbd2 {[%clk 0:02:47]}  h6 {[%clk 0:02:55]} 12. a3 {[%clk 0:02:43]}  Nb6 {[%clk 0:02:55]} 13. Rfe1 {[%clk 0:02:43]}  Kd7 {[%clk 0:02:55]} 14. Nf1 {[%clk 0:02:43]}  g5 {[%clk 0:02:56]} 15. Bg3 {[%clk 0:02:42]}  Bg7 {[%clk 0:02:56]} 16. h3 {[%clk 0:02:42]}  Kc6 {[%clk 0:02:57]} 17. N3h2 {[%clk 0:02:43]}  Bc8 {[%clk 0:02:56]} 18. Qh5 {[%clk 0:02:43]}  Qg8 {[%clk 0:02:54]} 19. Ne3 {[%clk 0:02:40]}  Bd7 {[%clk 0:02:53]} 20. Nhg4 {[%clk 0:02:40]}  a4 {[%clk 0:02:50]} 21. Nf6 {[%clk 0:02:40]}  Qf8 {[%clk 0:02:43]} 22. Neg4 {[%clk 0:02:36]}  Kb7 {[%clk 0:02:29]} 23. Re3 {[%clk 0:02:36]}  Nf5 {[%clk 0:02:26]} 24. Rf3 {[%clk 0:02:36]}  Bxf6 {[%clk 0:02:25]} 25. Nxf6 {[%clk 0:02:31]}  Nxg3 {[%clk 0:02:23]} 26. fxg3 {[%clk 0:02:24]}  Bc6 {[%clk 0:02:05]} 27. Nxd5 {[%clk 0:02:20]}  Bxd5 {[%clk 0:02:00]} 28. Rxf7+ {[%clk 0:02:20]}  Qxf7 {[%clk 0:02:01]} 29. Qxf7+ {[%clk 0:02:20]}  Ka6 {[%clk 0:02:01]} 30. Rf1 {[%clk 0:02:19]}  Rad8 {[%clk 0:01:54]} 31. Kh2 {[%clk 0:02:08]}  Rd7 {[%clk 0:01:51]} 32. Qf6 {[%clk 0:02:08]}  Rdd8 {[%clk 0:01:51]} 33. Bg6 {[%clk 0:02:01]}  Nd7 {[%clk 0:01:48]} 34. Qe7 {[%clk 0:01:59]}  Nb6 {[%clk 0:01:44]} 35. Rf7 {[%clk 0:01:51]}  Rd7 {[%clk 0:01:42]} 36. Qf6 {[%clk 0:01:51]}  Rg8 {[%clk 0:01:20]} 37. Rxd7 {[%clk 0:01:47]}  Nxd7 {[%clk 0:01:21]} 38. Qf7 {[%clk 0:01:48]}  Rf8 {[%clk 0:01:08]} 39. Qxd7 {[%clk 0:01:47]}  Rf2 {[%clk 0:01:09]} 40. Qd6+ {[%clk 0:01:46]}  Ka7 {[%clk 0:01:05]} 41. Kh1 {[%clk 0:01:27]}  Rf1+ {[%clk 0:01:01]} 42. Kh2 {[%clk 0:01:27]}  Rf2 {[%clk 0:01:01]} 43. Kg1 {[%clk 0:01:26]}  Rxg2+ {[%clk 0:01:01]} 44. Kf1 {[%clk 0:01:26]}  Rxb2 {[%clk 0:01:00]} 45. Qe7+ {[%clk 0:01:15]}  Kb8 {[%clk 0:00:55]} 46. Bf7 {[%clk 0:01:01]}  Be4 {[%clk 0:00:16]} 47. Qd6+ {[%clk 0:00:52]}  Ka7 {[%clk 0:00:15]} 48. Bxe6 {[%clk 0:00:42]}  Rb1+ {[%clk 0:00:12]} 49. Ke2 {[%clk 0:00:40]}  Bd3+ {[%clk 0:00:12]} 50. Kf2 {[%clk 0:00:34]}  Rf1+ {[%clk 0:00:12]} 51. Kg2 {[%clk 0:00:33]}  Rc1 {[%clk 0:00:04]} 52. Qc7+ {[%clk 0:00:33]} 1-0


[Site "https://www.chess.com"]

[Event "Titled Tuesday Blitz July 18 Early 2023"]
[White "Gulamali, Kazim"]
[Black "Llanos, Guillermo"]
[WhiteFideId "2024764"]
[BlackFideId "100358"]
[WhiteElo "2506"]
[BlackElo "2361"]
[Result "1-0"]
[Round "9"]
[TimeControl "180+2"]
[Date "2023.07.18"]
[WhiteClock "0:02:01"]
[BlackClock "0:01:15"]
[Board "97"]

1. e4 {[%clk 0:02:52]}  Nf6 {[%clk 0:03:00]} 2. e5 {[%clk 0:02:52]}  Nd5 {[%clk 0:03:00]} 3. d4 {[%clk 0:02:52]}  d6 {[%clk 0:03:00]} 4. Nf3 {[%clk 0:02:53]}  Bg4 {[%clk 0:02:58]} 5. Be2 {[%clk 0:02:53]}  e6 {[%clk 0:02:57]} 6. O-O {[%clk 0:02:53]}  Be7 {[%clk 0:02:57]} 7. h3 {[%clk 0:02:53]}  Bh5 {[%clk 0:02:57]} 8. c4 {[%clk 0:02:53]}  Nb6 {[%clk 0:02:57]} 9. Nc3 {[%clk 0:02:53]}  O-O {[%clk 0:02:56]} 10. exd6 {[%clk 0:02:42]}  cxd6 {[%clk 0:02:56]} 11. Be3 {[%clk 0:02:43]}  Nc6 {[%clk 0:02:55]} 12. b3 {[%clk 0:02:42]}  d5 {[%clk 0:02:55]} 13. c5 {[%clk 0:02:41]}  Nc8 {[%clk 0:02:55]} 14. g4 {[%clk 0:02:38]}  Bg6 {[%clk 0:02:55]} 15. a3 {[%clk 0:02:35]}  a6 {[%clk 0:02:47]} 16. b4 {[%clk 0:02:34]}  b5 {[%clk 0:02:44]} 17. a4 {[%clk 0:02:30]}  bxa4 {[%clk 0:02:23]} 18. Qxa4 {[%clk 0:02:31]}  Qe8 {[%clk 0:02:07]} 19. b5 {[%clk 0:02:28]}  Nb8 {[%clk 0:01:57]} 20. b6 {[%clk 0:02:28]}  Qxa4 {[%clk 0:01:49]} 21. Rxa4 {[%clk 0:02:29]}  Nxb6 {[%clk 0:01:33]} 22. cxb6 {[%clk 0:02:30]}  f5 {[%clk 0:01:32]} 23. Ne5 {[%clk 0:02:26]}  f4 {[%clk 0:01:31]} 24. Bd2 {[%clk 0:02:25]}  Bc2 {[%clk 0:01:28]} 25. Ra2 {[%clk 0:02:22]}  Be4 {[%clk 0:01:26]} 26. Nxe4 {[%clk 0:02:19]}  dxe4 {[%clk 0:01:25]} 27. Bc4 {[%clk 0:02:19]}  Kh8 {[%clk 0:01:23]} 28. Bxe6 {[%clk 0:02:19]}  g5 {[%clk 0:01:19]} 29. Bd5 {[%clk 0:02:18]}  Nd7 {[%clk 0:01:16]} 30. Nxd7 {[%clk 0:02:12]}  Rad8 {[%clk 0:01:16]} 31. Nxf8 {[%clk 0:02:12]}  Rxd5 {[%clk 0:01:16]} 32. Ne6 {[%clk 0:02:01]}  Rd6 {[%clk 0:01:15]} 1-0


[Site "https://www.chess.com"]